Cogmind - Beta 13 @@@ ROGUE MODE // 2024.04.04 @ 18:49:44 Player: Body_Elektric Result: Destroyed by S-27 Virus with Autogun Performance ------------- Evolutions (3) 1500 Regions Visited (12) 2400 Robots Destroyed (159) 795 Value Destroyed (5215) 5215 Prototype IDs (44) 880 Alien Tech Used (0) 0 Bonus (1351) 1351 TOTAL SCORE: 12141 Bonus ------- High Alert Combat Kills 442 Follower Combat Kills 95 Entered Garrisons 200 Used RIF Installer 500 Aligned with FarCom 300 Friendly Fire -186 Cogmind --------- Core Integrity 0/700 Matter 402/500 Energy 52/100 System Corruption 0% Temperature Cool (0) Movement Hovering (120) Ox1 Location -6/Proximity Caves Parts ------- > --- POWER (1) -------- (None) > --- PROPULSION (4) --- Hover Unit > --- UTILITY (6) ------ High-capacity Matter Pod > --- WEAPON (2) ------- Gauss Rifle Mini Grenade Launcher > --- INVENTORY (5) ---- Bomb Factory No. 2 Shock Maul Peak State ------------ > --- POWER ------------ Reinforced Deuterium Engine > --- PROPULSION ------- Armored Treads Armored Treads Wheel > --- UTILITY ---------- Improved Cooling System Large Storage Unit Improved Terrain Scanner Advanced Melee Analysis Suite Core Analyzer Thermal Shield > --- WEAPON ----------- Gauss Cannon Longsword +1 > --- INVENTORY -------- Improved Deuterium Engine Armored Treads Armored Treads High-capacity Matter Pod Trap Scanner Hacking Suite Hacking Suite System Shield System Shield Heavy Particle Cannon Gauss Rifle Mini Grenade Launcher Remote Datajack Shock Maul [Rating: 49] Favorites ----------- Power Light Nuclear Core Engine Improved Ion Engine Power Core Light Nuclear Core Propulsion Armored Treads Treads Armored Treads Leg Carbon-fiber Leg Wheel Wheel Hover Unit Hover Unit Utility Large Storage Unit Device Seismic Detector Storage Large Storage Unit Processor Core Analyzer Hackware Relay Coupler [NC] Protection Hardened Medium Armor Plating Weapon Longsword +1 Energy Gun Wave Gun Energy Cannon Heavy Particle Cannon Ballistic Gun Light Assault Rifle Ballistic Cannon Light Cannon Launcher Rocket Launcher Special Weapon Remote Datajack Impact Weapon Shock Maul Slashing Weapon Longsword +1 Special Melee Weapon Datajack Build | -11 -10 -10 -10 -9 -8 -8 -8 -7 -7 -7 -7 -6 ------- Run | Yrd Mat Min Exi Min Mat Sto Gar Fac Low Low Zio Pro Slots Evolved 6 | . . . . . 4 . . 2 . . . . Power . | . . . . . . . . . . . . . Propulsion 2 | . . . . . 2 . . . . . . . Utility 4 | . . . . . 2 . . 2 . . . . Weapon . | . . . . . . . . . . . . . Parts Attached 216 | 6 26 8 4 5 49 24 24 24 11 20 9 6 Power 18 | 1 2 1 . 1 5 4 1 . 2 . 1 . Engine 15 | 1 . . . 1 5 4 1 . 2 . 1 . Core 3 | . 2 1 . . . . . . . . . . Reactor . | . . . . . . . . . . . . . Propulsion 53 | 2 11 2 . 1 15 4 5 5 . 5 2 1 Treads 32 | 2 7 1 . 1 10 3 1 2 . 5 . . Leg 2 | . . . . . . . . . . . 2 . Wheel 18 | . 4 1 . . 5 1 4 3 . . . . Hover 1 | . . . . . . . . . . . . 1 Flight . | . . . . . . . . . . . . . Utility 38 | 2 4 1 . 1 5 1 6 7 4 4 2 1 Device 14 | 1 3 1 . . 1 . 1 1 2 2 2 . Storage 3 | 1 1 . . . . . . . . . . 1 Processor 8 | . . . . . 1 . 1 3 2 1 . . Hackware 2 | . . . . . . . . 2 . . . . Protection 11 | . . . . 1 3 1 4 1 . 1 . . Artifact . | . . . . . . . . . . . . . Weapon 107 | 1 9 4 4 2 24 15 12 12 5 11 4 4 Energy Gun 6 | . . . . . 3 . . . . 2 1 . Energy Cannon 8 | . . . . . 4 2 . 1 . 1 . . Ballistic Gun 25 | 1 5 2 . 2 8 2 . . 2 2 . 1 Ballistic Cannon 18 | . 3 2 3 . 1 1 3 3 1 1 . . Launcher 17 | . . . . . . 5 5 3 . 2 . 2 Special Weapon 7 | . 1 . . . . . . 4 . 1 1 . Impact Weapon 3 | . . . . . . 1 . . . . 1 1 Slashing Weapon 20 | . . . . . 6 4 4 1 2 2 1 . Piercing Weapon . | . . . . . . . . . . . . . Special Melee Weapon 3 | . . . 1 . 2 . . . . . . . Unidentified Prototypes 4 | . . . . . . 3 . . . . 1 . Parts Lost 36 | . . . . . 1 1 2 4 4 10 14 . Power 2 | . . . . . . . . . 1 . 1 . Propulsion 13 | . . . . . 1 1 . 2 . 4 5 . Utility 16 | . . . . . . . 2 2 3 3 6 . Weapon 5 | . . . . . . . . . . 3 2 . Highest Loss Streak 12 | . . . . . 1 1 2 1 2 6 12 . To Critical Strikes 3 | . . . . . . . . . . . 3 . Average Slot Usage (%) 95 | . 98 100 100 100 94 98 98 92 99 85 75 26 Engine 5 | . 1 . . . 9 9 9 7 6 7 6 . Core 4 | . 12 14 14 13 . . . . . . . . Treads 20 | . 27 24 28 28 18 18 18 15 15 15 15 . Wheel 8 | . . 3 . . 14 17 18 10 15 2 . . Device 7 | . 14 14 14 . 2 . . . 11 14 6 . Storage 10 | . 14 14 14 14 9 9 9 7 7 7 5 5 Processor 7 | . . . . . 8 9 3 14 16 19 18 . Hackware 1 | . . . . . . . . 6 7 . . . Protection 8 | . . . . 14 14 17 22 12 2 1 4 . Energy Cannon 1 | . . . . . 4 7 . . . . . . Ballistic Gun 7 | . 20 6 1 16 5 . . . 6 2 2 5 Ballistic Cannon 5 | . 5 21 15 11 . 2 6 4 7 1 . . Slashing Weapon 3 | . . . . . 5 7 4 3 . 4 3 . Naked Turns . | . . . . . . . . . . . . . Heaviest Build 59 | 12 32 32 32 35 54 57 59 47 48 50 50 9 Greatest Support 60 | 40 40 40 40 48 48 40 40 40 40 60 60 6 Greatest Overweight (x) 15 | 1 2 3 . . 5 5 4 4 2 4 15 1 Average Overweight (x) 1 | . . . . . 2 2 1 1 1 1 . . Largest Inventory Capacity 15 | 8 15 15 15 15 15 15 15 15 15 15 15 5 Average Capacity 14 | 7 14 15 15 15 15 15 15 15 15 15 12 5 Most Carried 15 | 5 15 15 15 15 15 15 15 15 15 15 15 5 Average Carried 13 | 3 11 15 14 14 14 14 14 13 13 12 11 3 Final Capacity 15 | 8 15 15 15 15 15 15 15 15 15 15 5 5 Final Carried 15 | 5 15 15 15 15 15 15 15 15 14 14 5 3 Class Distribution -------------------- 67% | Mutant 27% | Scavenger-Mutant Dominant Class ---------------- Mutant | -10/Materials Mutant | -10/Mines Mutant | -10/Exiles Mutant | -9/Mines Mutant | -8/Materials Mutant | -8/Storage Mutant | -8/Garrison Scavenger-Mutant | -7/Factory Scavenger-Mutant | -7/Lower Caves Mutant | -7/Lower Caves Mutant | -7/Zion Mutant | -6/Proximity Caves Resources | -11 -10 -10 -10 -9 -8 -8 -8 -7 -7 -7 -7 -6 ----------- Run | Yrd Mat Min Exi Min Mat Sto Gar Fac Low Low Zio Pro Matter Collected 4421 | 349 542 243 30 110 610 410 576 673 453 392 21 12 Remotely . | . . . . . . . . . . . . . Salvage Created 5446 | 97 523 164 . 56 1212 676 828 466 440 887 65 32 Parts 337 | 13 39 23 . 6 68 48 53 33 15 38 . 1 Haulers Intercepted 3 | . 1 . . . 2 . . . . . . . Recyclers Shooed 4 | . 2 . . 1 . 1 . . . . . . Parts Field Recycled . | . . . . . . . . . . . . . Retrieved Matter . | . . . . . . . . . . . . . Parts Self-Destructed 48 | . . . . . . . . . 14 34 . . Prevented . | . . . . . . . . . . . . . Kills | -11 -10 -10 -10 -9 -8 -8 -8 -7 -7 -7 -7 -6 ------- Run | Yrd Mat Min Exi Min Mat Sto Gar Fac Low Low Zio Pro Combat Hostiles Destroyed 113 | . 9 8 . 4 17 14 23 12 7 15 1 3 Melee 32 | . . . . . 11 5 4 3 2 6 . 1 Guns 20 | . 8 . . 4 3 3 . . . 2 . . Cannons 26 | . 1 8 . . 1 2 7 2 5 . . . AOE 33 | . . . . . 2 4 12 7 . 7 . 1 Classes Destroyed 18 | 3 5 . . . 3 . 2 2 . 1 1 1 Worker 10 | 1 . . . 1 2 3 . 3 . . . . Builder 2 | . . . . . 1 . . 1 . . . . Tunneler 9 | 4 . 5 . . . . . . . . . . Hauler 3 | . 1 . . . 2 . . . . . . . Recycler 5 | 1 2 . . . 1 . . 1 . . . . Mechanic 2 | . . . . . . . . 1 . 1 . . Operator 5 | . 1 . . . 2 2 . . . . . . Drone 2 | . . . . . . . . . . . . 2 Watcher 9 | . 3 . . . 4 2 . . . . . . Swarmer 32 | . 3 6 . 4 . 7 6 3 . 2 . 1 Grunt 38 | . 6 2 . . 9 2 6 4 6 3 . . Brawler 5 | . . . . . . . . 1 1 3 . . Duelist 1 | . . . . . . . . . . 1 . . Sentry 19 | . . . . . 6 5 6 1 . 1 . . Specialist 1 | . . . . . . . 1 . . . . . Hunter 12 | . . . . . 3 . 3 2 . 4 . . Programmer 3 | . . . . . . . 1 1 . 1 . . Tinkerer 1 | . . . . . . . . . . . 1 . Butcher 1 | . . . . . . . . . . . 1 . Best Kill Streak 9 | 2 3 3 . 4 3 4 6 4 4 9 2 2 Combat Bots Only 6 | . 3 3 . 4 2 3 6 3 4 6 1 2 Max Kills in Single Turn 4 | 1 1 2 . 1 3 3 3 4 1 3 1 1 Gunslinging . | . . . . . . . . . . . . . Exploded 3 | . . . . . 1 3 3 2 . 3 . 1 Melee 1 | . . . . . 1 1 1 1 1 1 . 1 Uniques/NPCs Destroyed . | . . . . . . . . . . . . . Combat | -11 -10 -10 -10 -9 -8 -8 -8 -7 -7 -7 -7 -6 -------- Run | Yrd Mat Min Exi Min Mat Sto Gar Fac Low Low Zio Pro Hostile Shots Fired 692 | . 56 35 . 9 49 64 97 85 55 93 136 13 Missed 207 | . 9 7 . 2 14 12 34 33 14 19 62 1 Damage Taken 7302 | . 572 239 . 62 556 534 1065 794 683 1417 1228 152 Core 963 | . 95 57 . 16 58 15 19 47 45 145 419 47 Absorbed by Shields . | . . . . . . . . . . . . . Redirected to Shielding 23 | . . . . 3 20 . . . . . . . Ignored by Resistances 73 | . . . . . . . . . . 73 . . Regen/Repaired (Parts) 177 | . 10 . . . . 167 . . . . . . Core Remaining (%) 71 | 100 . . . 32 . . 83 . . . . . Volleys Fired 408 | 54 81 24 . 6 75 22 41 45 32 27 . 1 Largest 2 | 1 2 2 . 2 2 2 2 2 2 2 . 2 Hottest 135 | 20 135 70 . 63 119 119 108 123 76 109 . 58 Shots Fired 604 | 54 160 48 . 12 99 37 55 49 48 40 . 2 Gun 332 | 54 125 10 . 6 77 12 . . 23 24 . 1 Cannon 210 | . 31 38 . 6 22 18 32 28 25 10 . . Launcher 41 | . . . . . . 7 23 7 . 3 . 1 Special 21 | . 4 . . . . . . 14 . 3 . . Kinetic 482 | 54 156 48 . 12 71 26 25 27 48 14 . 1 Thermal 64 | . 4 . . . 28 4 7 1 . 20 . . Explosive 41 | . . . . . . 7 23 7 . 3 . 1 Electromagnetic . | . . . . . . . . . . . . . Robot Hit Streak 17 | 4 17 6 . 5 9 2 9 5 15 7 . . Robot Miss Streak 9 | 7 8 4 . 9 6 6 8 4 3 3 . . Penetration Max 1 | . . . . . . . . . 1 . . . Secondary Targets . | . . . . . . . . . . . . . Shots Hit Robots 427 | 28 89 24 6 9 82 34 48 33 36 34 2 2 Core Hits 256 | 7 38 16 . 9 36 30 39 27 15 36 . 3 Critical Kills 1 | . . . . . 1 . . . . . . . Critical Parts Destroyed 1 | . . . . . . . . . . . 1 . Critical Strikes 14 | . . 1 . . 3 . 1 3 3 2 1 . Destroy 1 | . . . . . 1 . . . . . . . Blast 4 | . . 1 . . . . . 2 1 . . . Smash 1 | . . . . . . . . . . . 1 . Sever 8 | . . . . . 2 . 1 1 2 2 . . Melee Attacks 173 | . . . 6 . 53 55 30 5 7 13 2 2 Impact 4 | . . . . . . . . . . . 2 2 Slashing 157 | . . . . . 47 55 30 5 7 13 . . Piercing . | . . . . . . . . . . . . . Sneak Attacks 22 | . . . 6 . 9 2 . 2 . 1 1 1 Combat Hostiles 5 | . . . . . 2 . . 2 . . . 1 Follow-up Attacks . | . . . . . . . . . . . . . Damage Inflicted 15097 | 211 900 458 . 162 2937 1912 3312 2087 964 1678 196 280 Guns 2437 | 208 653 55 . 88 583 205 . . 344 301 . . Cannons 2010 | . 228 344 . 53 50 138 294 408 370 125 . . Explosions 4376 | . . . . . 573 401 1303 1322 . 640 . 137 Melee 6152 | . . . . . 1723 1156 1715 357 250 612 196 143 Ramming 122 | 3 19 59 . 21 8 12 . . . . . . Kinetic 3827 | 208 881 399 . 141 436 318 244 383 714 103 . . Thermal 620 | . . . . . 197 25 50 25 . 323 . . Explosive 4376 | . . . . . 573 401 1303 1322 . 640 . 137 Electromagnetic . | . . . . . . . . . . . . . Impact 339 | . . . . . . . . . . . 196 143 Slashing 5813 | . . . . . 1723 1156 1715 357 250 612 . . Piercing . | . . . . . . . . . . . . . Highest Corruption 6 | . . . . . 1 1 1 5 6 6 6 . Average Corruption 3 | . . . . . 1 1 1 2 4 6 6 . Corruption Purged 5 | . . . . . . . . 5 . . . . Corruption Blocked . | . . . . . . . . . . . . . Effects 131 | . . . . . 2 14 5 10 35 58 7 . Message Errors 31 | . . . . . . 4 2 3 10 11 1 . Matter Fused 33 | . . . . . . 4 1 4 5 17 2 . Heat Flow Errors 14 | . . . . . . 3 . . 4 6 1 . Energy Discharges 23 | . . . . . 1 2 1 3 4 10 2 . Parts Rejected 1 | . . . . . . . . . . 1 . . Parts Fused 3 | . . . . . . . . . 3 . . . Data Loss (minor) 16 | . . . . . 1 . . . 6 9 . . Data Loss (major) 4 | . . . . . . 1 1 . 2 . . . Misfires 4 | . . . . . . . . . 1 3 . . Alerts 1 | . . . . . . . . . . . 1 . Weapon Failures 1 | . . . . . . . . . . 1 . . Overload Shots . | . . . . . . . . . . . . . Overflow Damage 1082 | . . 37 . . 190 133 369 96 . 34 171 52 Projectiles 70 | . . 37 . . . . . 33 . . . . Explosions 139 | . . . . . 28 6 42 63 . . . . Melee 873 | . . . . . 162 127 327 . . 34 171 52 Knockbacks 20 | . 4 7 . 1 . 1 . 4 2 . 1 . Impact 3 | . 1 1 . . . . . . . . 1 . Kinetic 17 | . 3 6 . 1 . 1 . 4 2 . . . Secondary . | . . . . . . . . . . . . . Self-Inflicted Damage 284 | . . . . . 4 31 84 140 . 25 . . Shots 9 | . . . . . . 1 4 3 . 1 . . Rammed 19 | . 5 8 . 3 1 2 . . . . . . Targets Rammed 23 | 3 5 9 . 3 1 2 . . . . . . Kicked . | . . . . . . . . . . . . . Crushed 4 | 3 . 1 . . . . . . . . . . Highest Temperature 400 | . 90 84 . 54 144 273 400 51 269 271 208 . Average Temperature 68 | . 17 31 . 27 47 103 123 21 74 81 104 . Received Heat Transfer 1329 | . 258 6 . . 144 63 153 120 396 189 . . Effects 8 | . . . . . . . 4 . 3 1 . . Shutdowns 1 | . . . . . . . 1 . . . . . Energy Bleed 2 | . . . . . . . 2 . . . . . Interference 4 | . . . . . . . . . 3 1 . . Short Circuit 1 | . . . . . . . 1 . . . . . Siege Activations . | . . . . . . . . . . . . . Robots Corrupted . | . . . . . . . . . . . . . Combat Hostiles . | . . . . . . . . . . . . . Parts Fried 2 | . . . . . . . . . . . 1 1 Impact Corruptions 7 | . . . . . . . . . . . 5 2 Robots Melted . | . . . . . . . . . . . . . Combat Hostiles . | . . . . . . . . . . . . . Parts Melted 1 | . . . . . . . . . . 1 . . Heat Transferred 962 | . . . . . 333 37 74 37 . 481 . . Parts Sabotaged . | . . . . . . . . . . . . . Parts Stolen . | . . . . . . . . . . . . . Parts Stripped . | . . . . . . . . . . . . . Power Chain Reactions . | . . . . . . . . . . . . . Alert | -11 -10 -10 -10 -9 -8 -8 -8 -7 -7 -7 -7 -6 ------- Run | Yrd Mat Min Exi Min Mat Sto Gar Fac Low Low Zio Pro Peak Influence 1125 | 25 120 125 . 90 320 339 1125 708 . . . . Initial 590 | . . 4 . . 24 100 220 590 . . . . Average 181 | 10 22 26 . 10 126 230 666 622 . . . . Maximum Alert Level 4 | . . . . . 1 1 4 3 . . . . Low Security (%) 70 | 100 100 100 . 100 85 32 . . . . . . Level 1 14 | . . . . . 14 67 15 . . . . . Level 2 11 | . . . . . . . 44 98 . . . . Level 3 3 | . . . . . . . 37 1 . . . . Level 4 . | . . . . . . . 3 . . . . . Level 5 . | . . . . . . . . . . . . . High Security . | . . . . . . . . . . . . . Max Security . | . . . . . . . . . . . . . Squads Dispatched 14 | . 2 . . 1 3 . . 7 . 1 . . Investigation 4 | . 1 . . 1 1 . . 1 . . . . Extermination 1 | . . . . . . . . 1 . . . . Reinforcement 5 | . 1 . . . 2 . . 2 . . . . Assault 4 | . . . . . . . . 3 . 1 . . Garrison . | . . . . . . . . . . . . . Intercept . | . . . . . . . . . . . . . Searches Triggered . | . . . . . . . . . . . . . Construction Impeded 2 | . . . . . 1 . . 1 . . . . Haulers Reinforced . | . . . . . . . . . . . . . Active Scanning Responses . | . . . . . . . . . . . . . Cargo Convoy Interrupts . | . . . . . . . . . . . . . Stealth | -11 -10 -10 -10 -9 -8 -8 -8 -7 -7 -7 -7 -6 --------- Run | Yrd Mat Min Exi Min Mat Sto Gar Fac Low Low Zio Pro Distress Signals 8 | . 1 . . . 3 2 . 2 . . . . Communications Jammed . | . . . . . . . . . . . . . Distress Signals . | . . . . . . . . . . . . . Times Spotted 179 | . 22 8 . 6 40 23 21 24 7 15 7 6 Peak Tracking Total 7 | . 3 3 . 4 5 4 6 5 4 7 5 6 Tactical Retreats 9 | . . . . . 1 2 . . . 3 3 . Traps | -11 -10 -10 -10 -9 -8 -8 -8 -7 -7 -7 -7 -6 ------- Run | Yrd Mat Min Exi Min Mat Sto Gar Fac Low Low Zio Pro Traps Triggered 11 | . 1 . . . 5 1 3 1 . . . . Indirectly . | . . . . . . . . . . . . . Trap Hack Attempts . | . . . . . . . . . . . . . Triggered . | . . . . . . . . . . . . . Disarmed . | . . . . . . . . . . . . . Reprogrammed . | . . . . . . . . . . . . . Reused . | . . . . . . . . . . . . . Traps Extracted . | . . . . . . . . . . . . . Installed . | . . . . . . . . . . . . . Triggered . | . . . . . . . . . . . . . Machines | -11 -10 -10 -10 -9 -8 -8 -8 -7 -7 -7 -7 -6 ---------- Run | Yrd Mat Min Exi Min Mat Sto Gar Fac Low Low Zio Pro Machines Disabled 16 | . . . . . 4 3 6 3 . . . . Max in Single Turn 2 | . . . . . 2 1 2 1 . . . . Garrison Relay 2 | . . . . . . . 2 . . . . . Phase Generator 1 | . . . . . . . 1 . . . . . Machines Repaired . | . . . . . . . . . . . . . Machines Dismantled . | . . . . . . . . . . . . . Machines Sabotaged . | . . . . . . . . . . . . . Overloaded Fab Kills . | . . . . . . . . . . . . . Hacking | -11 -10 -10 -10 -9 -8 -8 -8 -7 -7 -7 -7 -6 --------- Run | Yrd Mat Min Exi Min Mat Sto Gar Fac Low Low Zio Pro Machines Accessed 45 | . 10 . 2 2 13 11 2 2 3 . . . Terminals 28 | . 7 . . 1 8 9 2 1 . . . . Fabricators 1 | . . . . . . . . 1 . . . . Repair Stations 4 | . 1 . . . 2 1 . . . . . . Recycling Units 4 | . 2 . . . 2 . . . . . . . Scanalyzers 1 | . . . . . 1 . . . . . . . Garrison Access 1 | . . . . . . 1 . . . . . . Total Hacks 107 | . 28 . 2 3 31 28 2 4 9 . . . Successful 65 | . 18 . 2 1 18 13 . 4 9 . . . Failed 41 | . 9 . . 2 13 15 2 . . . . . Catastrophic 5 | . . . . . 1 2 2 . . . . . Database Lockouts 1 | . 1 . . . . . . . . . . . Manual 26 | . 9 . 1 2 9 5 . . . . . . Terminals 65 | . 19 . . 2 17 24 2 1 . . . . Fabricators 3 | . . . . . . . . 3 . . . . Repair Stations 9 | . 3 . . . 3 3 . . . . . . Recycling Units 11 | . 6 . . . 5 . . . . . . . Scanalyzers 6 | . . . . . 6 . . . . . . . Garrison Access 1 | . . . . . . 1 . . . . . . Terminal Hacks 39 | . 9 . 2 1 8 9 . 1 9 . . . Record 11 | . 1 . 1 . 2 . . . 7 . . . Part Schematic 1 | . . . . . 1 . . . . . . . Robot Analysis 2 | . 1 . . . 1 . . . . . . . Prototype ID Bank 2 | . . . . . 1 1 . . . . . . Open Door 7 | . . . . 1 . 4 . . 2 . . . Open DSF 1 | . . . . . . . . 1 . . . . Branch Access Points 2 | . . . . . 1 1 . . . . . . Emergency Access Points 1 | . . . . . . 1 . . . . . . Alert Level 3 | . . . . . 1 2 . . . . . . Locate Traps 2 | . 2 . . . . . . . . . . . Dispatch Records 1 | . 1 . . . . . . . . . . . Investigation Status 1 | . 1 . . . . . . . . . . . Recall Investigation 1 | . 1 . . . . . . . . . . . Hauler Manifests 2 | . 1 . . . 1 . . . . . . . Zone Layout 1 | . 1 . . . . . . . . . . . Derelict Proto ID Bank 1 | . . . 1 . . . . . . . . . Fabricator Hacks 3 | . . . . . . . . 3 . . . . Network Status 1 | . . . . . . . . 1 . . . . Load Schematic 1 | . . . . . . . . 1 . . . . Build 1 | . . . . . . . . 1 . . . . Repair Station Hacks 4 | . 2 . . . . 2 . . . . . . Scan Component 2 | . 1 . . . . 1 . . . . . . Repair 2 | . 1 . . . . 1 . . . . . . Recycling Unit Hacks 10 | . 6 . . . 4 . . . . . . . Process 3 | . 2 . . . 1 . . . . . . . Report Inventory 4 | . 2 . . . 2 . . . . . . . Retrieve Matter 3 | . 2 . . . 1 . . . . . . . Scanalyzer 6 | . . . . . 6 . . . . . . . Insert Component 3 | . . . . . 3 . . . . . . . Analyze 3 | . . . . . 3 . . . . . . . Garrison Access Hacks 1 | . . . . . . 1 . . . . . . Unlock Access 1 | . . . . . . 1 . . . . . . Unauthorized Hacks 2 | . 1 . . . . 1 . . . . . . Terminals 2 | . 1 . . . . 1 . . . . . . Detonate 2 | . 1 . . . . 1 . . . . . . Fabricators . | . . . . . . . . . . . . . Repair Stations . | . . . . . . . . . . . . . Recycling Units . | . . . . . . . . . . . . . Scanalyzers . | . . . . . . . . . . . . . Garrison Access . | . . . . . . . . . . . . . Data Cores Recovered 2 | . . . . . 1 1 . . . . . . Used 2 | . . . . . 1 1 . . . . . . Hacking Detections 33 | . 8 . . 1 13 8 2 1 . . . . Full Trace Events 5 | . 2 . . . 2 . . 1 . . . . Feedback Events 1 | . . . . . 1 . . . . . . . Corruption 1 | . . . . . 1 . . . . . . . Feedback Blocked . | . . . . . . . . . . . . . Robot Schematics Acquired . | . . . . . . . . . . . . . Robots Built . | . . . . . . . . . . . . . Authchips . | . . . . . . . . . . . . . Time . | . . . . . . . . . . . . . Total Robot Build Rating . | . . . . . . . . . . . . . Part Schematics Acquired 3 | . . . . . 3 . . . . . . . Parts Built 2 | . . . . . . . . 2 . . . . Authchips . | . . . . . . . . . . . . . Time 73 | . . . . . . . . 73 . . . . Total Part Build Rating 6 | . . . . . . . . 6 . . . . Parts Repaired 2 | . 1 . . . . 1 . . . . . . Time 64 | . 26 . . . . 38 . . . . . . Parts Recycled . | . . . . . . . . . . . . . Recycled Matter 630 | . 290 . . . 340 . . . . . . . Retrieved Matter 937 | . 386 . . . 551 . . . . . . . Retrieved Components . | . . . . . . . . . . . . . Parts Scanalyzed 3 | . . . . . 3 . . . . . . . Part Schematics Acquired 2 | . . . . . 2 . . . . . . . Parts Damaged . | . . . . . . . . . . . . . Bothacking | -11 -10 -10 -10 -9 -8 -8 -8 -7 -7 -7 -7 -6 ------------ Run | Yrd Mat Min Exi Min Mat Sto Gar Fac Low Low Zio Pro Used RIF Installer 1 | . . . . . . . 1 . . . . . Robots Hacked 13 | . . . 5 . 3 . . 5 . . . . Non-combat 9 | . . . 3 . 3 . . 3 . . . . Combat 4 | . . . 2 . . . . 2 . . . . Robot Hacks Applied 19 | . . . 5 . 3 . . 11 . . . . parse_system 7 | . . . 5 . 1 . . 1 . . . . no_distress 1 | . . . . . . . . 1 . . . . generate_echo 1 | . . . . . . . . 1 . . . . find_chute 2 | . . . . . . . . 2 . . . . deconstruct_machine 1 | . . . . . . . . 1 . . . . ignore_repairs 1 | . . . . . . . . 1 . . . . find_dsf 1 | . . . . . . . . 1 . . . . find_recycling 1 | . . . . . 1 . . . . . . . find_station 1 | . . . . . 1 . . . . . . . find_garrison 1 | . . . . . . . . 1 . . . . wipe_record 1 | . . . . . . . . 1 . . . . formatsys_high 1 | . . . . . . . . 1 . . . . Relay Couplers Released 10 | . . . . . . . 10 . . . . . Machine Destruction 6 | . . . . . . . 6 . . . . . Programmers 4 | . . . . . . . 4 . . . . . Attached 2 | . . . . . . . . 2 . . . . Fabnet Peak Effective % . | . . . . . . . . . . . . . Robots Rewired 1 | . . . . . . . . . . 1 . . Allies Hacked . | . . . . . . . . . . . . . Hacks Repelled . | . . . . . . . . . . . . . Allies | -11 -10 -10 -10 -9 -8 -8 -8 -7 -7 -7 -7 -6 -------- Run | Yrd Mat Min Exi Min Mat Sto Gar Fac Low Low Zio Pro Total Allies 8 | . . . . 3 . . . 1 3 1 . . Largest Group 3 | . . . . 3 3 . . 1 3 1 . . Highest-Rated Group 93 | . . . . 40 40 . . 32 93 30 . . Highest-Rated Ally 32 | . . . . 16 16 . . 32 31 30 . . Total Orders 4 | . . . . 3 . . . . . 1 . . GUARD 4 | . . . . 3 . . . . . 1 . . Ally Attacks 28 | . . . . 12 9 . . . . 7 . . Total Damage 431 | . . . . 138 111 . . . . 182 . . Kills 3 | . . . . 2 1 . . . . . . . Allies Corrupted . | . . . . . . . . . . . . . Allies Melted . | . . . . . . . . . . . . . Intel | -11 -10 -10 -10 -9 -8 -8 -8 -7 -7 -7 -7 -6 ------- Run | Yrd Mat Min Exi Min Mat Sto Gar Fac Low Low Zio Pro Robot Analysis Total 2 | . 1 . . . 1 . . . . . . . Derelict Logs Recovered 6 | . . 2 . 2 . . . . 2 . . . Drone Launches . | . . . . . . . . . . . . . Drone Recoveries . | . . . . . . . . . . . . . Exploration | -11 -10 -10 -10 -9 -8 -8 -8 -7 -7 -7 -7 -6 ------------- Run | Yrd Mat Min Exi Min Mat Sto Gar Fac Low Low Zio Pro Turns Passed 20229 | 434 3295 1592 775 966 4285 1979 1245 1235 1695 2236 381 111 Spaces Moved 11626 | 203 1823 975 475 573 2289 1096 857 579 1408 1056 216 76 Core 29 | 7 . . . . . . . . . . 18 4 Treads 5099 | 196 1688 677 475 573 507 24 25 126 1 661 146 . Legs 52 | . . . . . . . . . . . 52 . Wheels 6374 | . 135 298 . . 1782 1072 832 453 1407 395 . . Hover 72 | . . . . . . . . . . . . 72 Flight . | . . . . . . . . . . . . . Fastest Speed 50 | 50 110 125 160 160 95 110 95 95 95 110 50 50 Average Speed 141 | 156 156 149 160 160 131 117 114 143 110 196 164 109 Slowest Speed 800 | 160 160 160 160 160 250 330 250 250 250 330 800 120 Overloaded Moves . | . . . . . . . . . . . . . Propulsion Burnouts . | . . . . . . . . . . . . . Robots Hopped . | . . . . . . . . . . . . . Cave-ins Triggered . | . . . . . . . . . . . . . Exploration Rate (%) 61 | 8 97 98 67 86 81 86 54 10 98 84 14 11 Regions Visited 12 Branch Regions 8 Pre-discovered Areas 2 | . . . 1 . . . . . 1 . . . Known Exits Taken 4 | . . 1 . 1 1 1 . . . . . . Unknown Exits Taken 7 | 1 1 . 1 . . . . 1 1 1 1 . Scrap Searched 10 | . . 1 . . . . . . 6 3 . . Spaces Dug 48 | . 4 . . . 22 6 10 . 6 . . . Terrain Destroyed 433 | . 4 . . . 58 79 181 67 13 24 . 7 Melee 21 | . . . . . 15 6 . . . . . . Projectile 47 | . 4 . . . 18 5 . 4 13 3 . . AOE 365 | . . . . . 25 68 181 63 . 21 . 7 Terrain Rammed . | . . . . . . . . . . . . . Walls Destroyed . | . . . . . . . . . . . . . Machines Disabled . | . . . . . . . . . . . . . Actions | -11 -10 -10 -10 -9 -8 -8 -8 -7 -7 -7 -7 -6 --------- Run | Yrd Mat Min Exi Min Mat Sto Gar Fac Low Low Zio Pro Total 14600 | 272 2117 1061 486 611 3411 1693 1029 930 1497 1161 236 96 Wait 1975 | . 156 40 . 13 900 469 48 265 34 39 . 11 Move 11614 | 202 1822 974 474 572 2288 1095 856 578 1407 1055 215 76 Hop . | . . . . . . . . . . . . . Pick Up 81 | 6 15 2 1 5 21 5 8 6 3 6 3 . Fast Attach 54 | 6 2 . . 1 11 5 7 7 3 6 5 1 Attach 26 | . 1 . . . 5 . 1 4 4 6 3 2 Detach 2 | . . . . . . . . . . . 2 . Swap 136 | . 23 8 4 4 33 19 16 13 4 8 1 3 Drop 92 | 1 12 4 1 7 24 13 14 7 3 1 5 . Fire 408 | 54 81 24 . 6 75 22 41 45 32 27 . 1 Melee 173 | . . . 6 . 53 55 30 5 7 13 2 2 Ram 1 | . . . . . 1 . . . . . . . Kick . | . . . . . . . . . . . . . Crush 22 | 3 5 9 . 3 . 2 . . . . . . Escape Stasis 16 | . . . . . . 8 8 . . . . . Rewire . | . . . . . . . . . . . . . Trap . | . . . . . . . . . . . . . Miscellaneous . | . . . . . . . . . . . . . Route ------- -11/Scrapyard -10/Materials (discovered 5 exits: [*Mat x3] / [*Min x2]) -10/Mines (discovered 4 exits: [*Mat x2] / *Exi / [*Sub]) -10/Exiles -9/Mines (discovered 2 exits: *Mat x2) -8/Materials (discovered 3 exits: *Fac x2 / *Sto) -8/Storage (discovered 3 exits: *Fac / *Rec / Gar) -8/Garrison -7/Factory -7/Lower Caves -7/Lower Caves (discovered 2 exits: Fac / [*Zio]) -7/Zion -6/Proximity Caves (discovered 1 exit: Fac) History --------- Turn | Location | Event 10 | -11/Scrapyard | Discovered new exit (range 15) 435 | -11/Scrapyard | Entered Materials 436 | -10/Materials | Build established: Mutant 496 | -10/Materials | Discovered new exit (range 16) 543 | -10/Materials | Central database locked down 1013 | -10/Materials | Discovered new exit (range 4) 1840 | -10/Materials | Discovered new exit (range 12) 2246 | -10/Materials | Discovered new exit (range 16) 2976 | -10/Materials | Discovered new exit (range 7) 3260 | -10/Materials | Repaired Lgt. Treads 3730 | -10/Materials | Entered Mines 3847 | -10/Mines | Core integrity fell below 50% 4067 | -10/Mines | Learned Materials terminal intel 4377 | -10/Mines | Discovered new exit (range 5) 4419 | -10/Mines | Identified exit to Exiles 4579 | -10/Mines | Deemed a non-threat by the Exiles lab entrance 4675 | -10/Mines | Discovered new exit (range 8) 4726 | -10/Mines | Discovered new exit (range 12) 5322 | -10/Mines | Entered Exiles 5381 | -10/Exiles | Met 8R-AWN 5418 | -10/Exiles | Met EX-HEX 5476 | -10/Exiles | Met EX-BIN 5677 | -10/Exiles | Met EX-DEC 5712 | -10/Exiles | Learned location of Zion (-7) 5822 | -10/Exiles | Aligned with FarCom system 5824 | -10/Exiles | Given EX-Vault access code 5872 | -10/Exiles | Opened EX-Vault 5885 | -10/Exiles | Found Longsword +1 5925 | -10/Exiles | Warned to stay clear of 0b10 Research branches 6069 | -10/Exiles | Discovered new exit (range 15) 6097 | -10/Exiles | Left Exiles lab with Longsword +1 6097 | -10/Exiles | Entered Mines 6104 | -9/Mines | Received a Rocket Launcher from a helpful Derelict 6129 | -9/Mines | Identified exit to Materials 6151 | -9/Mines | Met a Derelict shopkeep closing up shop 6196 | -9/Mines | Learned Materials stockpile data 6627 | -9/Mines | Assisted by bots powering up and referring to "LRC-V3" 6697 | -9/Mines | Found a hidden stash of uninstalled traps 6984 | -9/Mines | Discovered exit to Materials (range 7) 7063 | -9/Mines | Entered Materials 7063 | -8/Materials | Accompanied by 3 allies 7063 | -8/Materials | Evolved 4 slots: Propulsion x2, Utility x2 7065 | -8/Materials | Loaded intel: 11 terminal locations 7195 | -8/Materials | Lost 3 allies 7624 | -8/Materials | Build established: Scavenger-Mutant 7829 | -8/Materials | Discovered new exit (range 8) 8753 | -8/Materials | Discovered new exit (range 14) 8954 | -8/Materials | Build established: Mutant 9501 | -8/Materials | Discovered new exit (range 3) 9589 | -8/Materials | Build established: Scavenger-Skirmisher 9986 | -8/Materials | Build established: Assassin 10163 | -8/Materials | Identified exit to Storage 10345 | -8/Materials | Build established: Mutant 11348 | -8/Materials | Entered Storage 11947 | -8/Storage | Identified exit to Recycling 12344 | -8/Storage | Discovered new exit (range 15) 12483 | -8/Storage | Identified exit to Garrison 13105 | -8/Storage | Repaired Hrd. Medium Armor Plating 13138 | -8/Storage | Used back door to open Recycling access 13327 | -8/Storage | Entered Garrison 13369 | -8/Garrison | Triggered checkpoint 13439 | -8/Garrison | Triggered checkpoint 13515 | -8/Garrison | Garrison Relay disabled 13738 | -8/Garrison | Triggered checkpoint 13749 | -8/Garrison | Triggered checkpoint 13922 | -8/Garrison | Discovered new exit (range 13) 14134 | -8/Garrison | Triggered checkpoint 14206 | -8/Garrison | Garrison Relay disabled 14267 | -8/Garrison | Phase Generator disabled 14378 | -8/Garrison | Installed Relay Interface Framework 14572 | -8/Garrison | Entered Factory 14572 | -7/Factory | Evolved 2 slots: Utility x2 14585 | -7/Factory | Discovered new exit (range 13) 14772 | -7/Factory | Build established: Scavenger-Mutant 14897 | -7/Factory | Fabricated Arm. Treads (x2) 15372 | -7/Factory | First assault squad dispatched 15807 | -7/Factory | Entered Lower Caves 15928 | -7/Lower Caves | Learned Factory terminal intel 16398 | -7/Lower Caves | Discovered new exit (range 15) 16649 | -7/Lower Caves | Encountered a Warlord checkpoint 16721 | -7/Lower Caves | Learned 4 Factory zone layouts 17235 | -7/Lower Caves | A Commander dispatched an escort 17236 | -7/Lower Caves | Learned location of Armory (-3) 17236 | -7/Lower Caves | Learned location of 1 exit from Research 17236 | -7/Lower Caves | Learned Factory terminal intel 17502 | -7/Lower Caves | Entered another Lower Caves area 17502 | -7/Lower Caves | Accompanied by 3 allies 17503 | -7/Lower Caves | Commander's escort returned to base 17503 | -7/Lower Caves | Commander's escort returned to base 17503 | -7/Lower Caves | Commander's escort returned to base 17503 | -7/Lower Caves | Identified exit to Factory 17512 | -7/Lower Caves | Encountered a Warlord checkpoint 18026 | -7/Lower Caves | Attracted the attention of an 0b10 outpost 18091 | -7/Lower Caves | Lost 6 parts (2n1u3w) 18097 | -7/Lower Caves | Build established: Mutant 18442 | -7/Lower Caves | Ambushed by research squad 19253 | -7/Lower Caves | Build established: Scavenger-Mutant 19288 | -7/Lower Caves | Discovered new exit (range 15) 19738 | -7/Lower Caves | Entered Zion 19963 | -7/Zion | System corruption cleaned by Quarantine Array 19969 | -7/Zion | RIF detected upon attempting to enter Zion 19969 | -7/Zion | Attacked by Zionites 19969 | -7/Zion | Spotted 2R-071(B) 19969 | -7/Zion | Spotted 70-0XO(B) 20003 | -7/Zion | Core integrity fell below 50% 20042 | -7/Zion | Core integrity fell below 20% 20065 | -7/Zion | Discovered new exit (range 13) 20082 | -7/Zion | Lost 12 parts (1p4n5u2w) 20085 | -7/Zion | Found Prototype Device 20085 | -7/Zion | Identified Bomb Factory No. 2 20119 | -7/Zion | Entered Proximity Caves 20158 | -6/Proximity Caves | Build established: Mutant 20230 | -6/Proximity Caves | Destroyed by S-27 Virus with Autogun Last Messages --------------- interruption sequence. Dropped Wave Gun. Dropped Trap Scanner. LOCATION=UNKNOWN GOAL=ESCAPE Sneak attack on N-01 Spotter. Destroyed Hover Unit. N-01 Spotter system corrupted by crushing effect. N-01 Spotter system terminally corrupted. Lgt. Ion Engine fried. Loading 1 Factory entrance... N-01 Spotter is scanning... N-01 Spotter destroyed. Acquired 2 matter. Acquired 10 matter. Acquired Hover Unit. Slug penetrates Wall. S-27 Virus destroyed. Slug penetrates Wall. Map ----- +----------------------------------------------------+ | ?????????????????????????????????????????????????? | | ?????????????????????????????????????????????????? | | ?????????????????????????????????????????????????? | | ?????????????????????????????????????????????????? | | ?????????????????????????????????????????????????? | | ?????????????????????????????????????????????????? | | ?????????????????????????????????????????????????? | | ?????????????????????????????????????????????????? | | ?????????????????????????????????????????????????? | | ?????????????????????????????????????????????????? | | ?????????????????????????????????????????????????? | | ?????????????????????????????????????????????????? | | ?????????????????????????????????????????????????? | | ?????????????????????????????????????????????????? | | ?????????????????????????????????????????????????? | | ?????????????????????????????????????????????????? | | ?????????????????????????????????????????????????? | | ?????????????##??????????????????????????????????? | | ????????????## #???#######???????????????????????? | | ????????????# #?## ##???#??????????????????? | | ???????????## ## #?? #??????????????????? | | ???????????# #?# #??????????????????? | | ????????????? ## ##?????????????????? | | ???????????????# ## # #??????????????? | | ????????????????# ## s #???????????????? | | ????????????????# @s #???????????????? | | ???????????????## ##hs #??????????????? | | ???????????????# ####??? % #??????????????? | | ???????????##### ###???????? ???????????? | | ??????????## ### ##??????????? ?????????? | | ?????????## ### ##### ???### ??????????? | | ????????## ## ????????????????? | | ????????# ????????????????? | | ????????# ????????????????? | | ???????## ?????????????????? | | ???????# ## ## ?????????????????? | | ???????# ##?# ##????????????????????? | | ??###### ##???###?????????????????????? | | ### ## ### ##????????????????????????????? | | #######?????????????????????????????? | | # ### ##??????????????????????????????? | | #### ## ##?????????????????????????????? | | ???## ## #?????????????????????????????? | | ?#### ### #?????????????????????????????? | | ## #?## #?????????????????????????????? | | # #??# ##?????????????????????????????? | | # #??# #??????????????????????????????? | | ## #??# #??????????????????????????????? | | ?#### #### #??#???????????????????????????? | | ????# ## ## ##??????????????????????????? | +----------------------------------------------------+ Best States ------------- Heat Dissipation 61 Energy Generation 18 Energy Capacity 290 Matter Stores 436 Matter Capacity 500 Sight Range 16 Terrain Scan Range 16 Terrain Scan Density 10 Armor Coverage 675 Resistance: TH 20 Core Shielding 20 Propulsion Shielding 33 Evasion (%) 55 Targeting Accuracy 5 Melee Accuracy 8 Target Analysis 5 Core Analysis 6 Armor Integrity Analysis 30 Recoil Reduction 7 Relay Coupler Types 1 Relay Coupler Value 31 Item Schematics ----------------- Hacking Suite | -8/Materials | Scanalyzed System Shield | -8/Materials | Scanalyzed Arm. Treads | -8/Materials | Hacked Robot Schematics ------------------ None Fabricated ------------ Arm. Treads | x2 | -7/Factory Alien Tech Used ----------------- None Achievements -------------- A New Friend Assimilation Complete Dramatic Entrance True Hacker Challenges ------------ None Game ------ Seed ScrapHybridLink Manual? 0 Play Time 05:18:07 Cumulative 28.7 hours Start 2024.04.03 @ 23:38:34 End 2024.04.04 @ 18:49:44 Sessions 3 Manual Loads 0 Difficulty Rogue Special Mode None Game No. 10 Rogue 10 Adventurer 0 Explorer 0 Win Type - Total 0 Types 0/0/0/0/0/0/0/0/0 Lore% 16 Gallery% 20 Achievement% 17 Wizard Run 0 Options --------- Layout 1 ASCII 0 Keyboard 0 Movement Arrows Keybinds 0 Fullscreen 1 Font 16/SmallcapsGlow Map View 55x38 Zoom Use 7% Tactical HUD 0 Map Filters NONE Filters NONE Steam 0 RUN: 57d38409-d6ac-4d75-82f4-7ec94bba8ab5